Cogmind - Beta 12 @@@ ROGUE MODE // 2023.05.20 @ 13:49:39 Player: puncake Result: Destroyed by P-70 Sage with Tesla Rifle Performance ------------- Evolutions (6) 3000 Regions Visited (14) 2800 Robots Destroyed (49) 245 Value Destroyed (2100) 2100 Prototype IDs (3) 60 Alien Tech Used (0) 0 Bonus (1671) 1671 TOTAL SCORE: 9876 Bonus ------- High Alert Combat Kills 66 Follower Combat Kills 105 Entered Garrisons 200 Used RIF Installer 500 Entered DSFs 500 Aligned with FarCom 300 Cogmind --------- Core Integrity 0/1150 Matter 16/300 Energy 94/100 System Corruption 8% Temperature Cool (0) Movement Core (200) Ox3 Location -4/Factory Parts ------- > --- POWER (1) -------- (None) > --- PROPULSION (6) --- (None) > --- UTILITY (9) ------ Advanced Signal Interpreter > --- WEAPON (3) ------- Hypervelocity Mass Driver > --- INVENTORY (5) ---- Fusion Compressor Kinecellerator Focal Shield Thermal Shield Dispersion Rifle Peak State ------------ > --- POWER ------------ Neutrino Core > --- PROPULSION ------- Backup Propulsion I Backup Propulsion I Gyrokinetic Inverter > --- UTILITY ---------- Advanced Signal Interpreter Hacking Suite Hacking Suite System Shield Skeleton Box Advanced Drone Bay > --- WEAPON ----------- Enhanced Gauss Cannon > --- INVENTORY -------- Gravmag Array Kinecellerator Focal Shield [Rating: 53] Favorites ----------- Power Light Nuclear Core Engine Improved Ion Engine Power Core Light Nuclear Core Propulsion Aluminum Leg Treads Light Treads Leg Aluminum Leg Wheel Wheel Hover Unit Backup Propulsion I Flight Unit Nuclear Pulse Array Utility Small Storage Unit Device Skeleton Box Storage Small Storage Unit Processor Core Analyzer Hackware Hacking Suite Protection Propulsion Shielding Weapon Gauss Rifle Energy Gun Backup Laser I Ballistic Gun Gauss Rifle Ballistic Cannon Bore Cannon Slashing Weapon Greatsword Build | -11 -10 -10 -10 -9 -8 -8 -8 -7 -7 -7 -6 -6 -5 -4 ------- Run | Jun Mat Min Exi Min Mat Sto Gar Fac Low Low Fac DSF Fac Fac Slots Evolved 12 | . . . . . 4 . . 2 . . 2 . 2 2 Power . | . . . . . . . . . . . . . . . Propulsion 4 | . . . . . 2 . . . . . 1 . 1 . Utility 7 | . . . . . 2 . . 2 . . . . 1 2 Weapon 1 | . . . . . . . . . . . 1 . . . Parts Attached 92 | 7 2 1 1 2 12 . 11 16 12 1 7 1 8 11 Power 13 | 1 1 . . . 1 . 3 2 1 . 2 . 1 1 Engine 4 | 1 . . . . . . 1 . . . 2 . . . Core 9 | . 1 . . . 1 . 2 2 1 . . . 1 1 Reactor . | . . . . . . . . . . . . . . . Propulsion 32 | 2 1 1 . 2 4 . 6 4 3 . 1 . 1 7 Treads 1 | . . . . . 1 . . . . . . . . . Leg 21 | 2 1 1 . 2 3 . 6 4 2 . . . . . Wheel 4 | . . . . . . . . . 1 . 1 . . 2 Hover 1 | . . . . . . . . . . . . . 1 . Flight 5 | . . . . . . . . . . . . . . 5 Utility 27 | 2 . . 1 . 3 . 1 7 5 . 3 . 5 . Device 17 | 1 . . 1 . 2 . 1 6 3 . 1 . 2 . Storage 1 | 1 . . . . . . . . . . . . . . Processor 5 | . . . . . . . . 1 2 . 2 . . . Hackware 3 | . . . . . . . . . . . . . 3 . Protection 1 | . . . . . 1 . . . . . . . . . Artifact . | . . . . . . . . . . . . . . . Weapon 20 | 2 . . . . 4 . 1 3 3 1 1 1 1 3 Energy Gun 3 | . . . . . 1 . . . . 1 . 1 . . Energy Cannon . | . . . . . . . . . . . . . . . Ballistic Gun 10 | 2 . . . . 3 . 1 . 3 . . . . 1 Ballistic Cannon 6 | . . . . . . . . 3 . . . . 1 2 Launcher . | . . . . . . . . . . . . . . . Special Weapon . | . . . . . . . . . . . . . . . Impact Weapon . | . . . . . . . . . . . . . . . Slashing Weapon 1 | . . . . . . . . . . . 1 . . . Piercing Weapon . | . . . . . . . . . . . . . . . Special Melee Weapon . | . . . . . . . . . . . . . . . Unidentified Prototypes 3 | . . . 1 . 1 . . . . 1 . . . . Parts Lost 44 | . 1 . . . . . 2 2 15 3 . 5 6 10 Power 6 | . 1 . . . . . 1 . 2 . . . 1 1 Propulsion 16 | . . . . . . . 1 . 5 1 . 1 2 6 Utility 15 | . . . . . . . . 2 5 . . 3 3 2 Weapon 7 | . . . . . . . . . 3 2 . 1 . 1 Highest Loss Streak 8 | . 1 . . . . . 2 1 8 3 . 5 6 4 To Critical Strikes . | . . . . . . . . . . . . . . . Average Slot Usage (%) 82 | . 97 100 100 100 98 100 99 99 85 40 39 36 44 19 Core 7 | . 6 14 14 14 9 9 7 6 5 . . . 3 1 Leg 23 | . 28 28 28 28 34 36 35 29 20 4 . . . . Hover 1 | . . . . . . . . . . . . . 13 . Device 18 | . 14 14 14 14 18 27 27 30 27 5 5 3 . . Storage 7 | . 14 14 14 14 9 9 9 7 7 4 . . . . Processor 4 | . . . . . . . . 6 6 15 24 21 10 5 Hackware 1 | . . . . . . . . . . . . . 9 4 Ballistic Gun 11 | . 28 28 28 28 17 18 18 . 2 8 . . . . Ballistic Cannon 3 | . . . . . . . . 14 12 . . . 3 1 Naked Turns . | . . . . . . . . . . . . . . . Heaviest Build 35 | 12 14 14 15 15 23 23 25 35 35 14 21 21 33 20 Greatest Support 62 | 20 20 20 20 20 47 47 52 62 62 17 10 10 23 39 Greatest Overweight (x) 4 | . . . . . . . . . 4 . 3 2 1 1 Average Overweight (x) . | . . . . . . . . . . . 1 . . . Largest Inventory Capacity 8 | 8 8 8 8 8 8 8 8 8 8 8 5 5 5 5 Average Capacity 7 | 7 8 8 8 8 8 8 8 8 8 7 5 5 5 5 Most Carried 8 | 6 8 8 8 8 8 8 8 8 8 3 5 4 5 5 Average Carried 6 | 3 7 8 8 7 7 8 7 7 6 2 4 3 3 4 Final Capacity 8 | 8 8 8 8 8 8 8 8 8 8 5 5 5 5 5 Final Carried 8 | 5 8 8 8 8 8 8 8 8 3 2 4 3 4 5 Class Distribution -------------------- 50% | Mutant 42% | Scavenger-Mutant 6% | Hacker-Mutant Dominant Class ---------------- Mutant | -10/Materials Mutant | -10/Mines Mutant | -10/Exiles Mutant | -9/Mines Scavenger-Mutant | -8/Materials Scavenger-Mutant | -8/Storage Scavenger-Mutant | -8/Garrison Scavenger-Mutant | -7/Factory Mutant | -7/Lower Caves Mutant | -7/Lower Caves Mutant | -6/Factory Mutant | -6/DSF Hacker-Mutant | -5/Factory Mutant | -4/Factory Resources | -11 -10 -10 -10 -9 -8 -8 -8 -7 -7 -7 -6 -6 -5 -4 ----------- Run | Jun Mat Min Exi Min Mat Sto Gar Fac Low Low Fac DSF Fac Fac Matter Collected 2068 | 198 132 87 . 76 114 174 412 118 588 . 16 . 5 148 Remotely . | . . . . . . . . . . . . . . . Salvage Created 2132 | 13 132 93 . 138 114 282 678 182 410 48 16 . . 26 Parts 109 | 3 14 1 . 9 3 18 33 9 13 2 2 . . 2 Haulers Intercepted 3 | . . . . . 2 . . 1 . . . . . . Recyclers Shooed 3 | . . . . 1 . 1 . 1 . . . . . . Parts Field Recycled . | . . . . . . . . . . . . . . . Retrieved Matter . | . . . . . . . . . . . . . . . Parts Self-Destructed 16 | . . . . . . . . . 14 2 . . . . Prevented . | . . . . . . . . . . . . . . . Kills | -11 -10 -10 -10 -9 -8 -8 -8 -7 -7 -7 -6 -6 -5 -4 ------- Run | Jun Mat Min Exi Min Mat Sto Gar Fac Low Low Fac DSF Fac Fac Combat Hostiles Destroyed 43 | . 5 2 . 2 . 5 13 3 11 1 . . . 1 Guns 32 | . 5 2 . 2 . 5 13 . 4 1 . . . . Cannons 11 | . . . . . . . . 3 7 . . . . 1 Classes Destroyed 10 | 1 2 . . 1 1 2 3 . . . . . . . Tunneler 2 | 1 . . . . . . . . . . 1 . . . Hauler 3 | . . . . . 2 . . 1 . . . . . . Recycler 1 | . . . . 1 . . . . . . . . . . Swarmer 4 | . 3 . . . . . . . . . . . . 1 Grunt 27 | . 2 2 . 2 . 2 6 2 10 1 . . . . Brawler 3 | . . . . . . . 1 1 1 . . . . . Duelist 1 | . . . . . . 1 . . . . . . . . Sentry 6 | . . . . . . 2 4 . . . . . . . Specialist 1 | . . . . . . . 1 . . . . . . . Hunter 1 | . . . . . . . 1 . . . . . . . Best Kill Streak 5 | 1 5 1 . 3 1 3 4 3 3 1 1 . . 1 Combat Bots Only 5 | . 5 1 . 2 . 3 4 3 3 1 . . . 1 Max Kills in Single Turn 2 | 1 1 1 . 1 1 2 1 1 1 1 1 . . 1 Gunslinging 1 | . . . . . . 1 . . . . . . . . Exploded . | . . . . . . . . . . . . . . . Melee . | . . . . . . . . . . . . . . . Uniques/NPCs Destroyed . | . . . . . . . . . . . . . . . Combat | -11 -10 -10 -10 -9 -8 -8 -8 -7 -7 -7 -6 -6 -5 -4 -------- Run | Jun Mat Min Exi Min Mat Sto Gar Fac Low Low Fac DSF Fac Fac Damage Taken 6463 | . 176 145 . 67 159 111 522 215 1300 484 . 593 662 2029 Core 2208 | . 59 50 . 11 16 10 75 27 148 127 . 157 370 1158 Absorbed by Shields 245 | . . . . . . 42 174 . . . . . . 29 Redirected to Shielding 36 | . . . . . 36 . . . . . . . . . Core Remaining (%) 72 | 100 . . . 52 . . 81 . . 56 . 81 63 . Volleys Fired 199 | 12 11 13 . 9 10 11 39 10 38 12 . 6 1 27 Largest 2 | 2 2 2 . 2 2 2 2 2 2 2 . 1 1 1 Hottest 105 | 40 40 40 . 40 56 56 56 105 105 83 . 69 57 66 Shots Fired 356 | 20 22 26 . 18 20 22 78 20 76 20 . 6 1 27 Gun 269 | 20 22 26 . 18 20 22 78 . 15 20 . 6 . 22 Cannon 87 | . . . . . . . . 20 61 . . . 1 5 Launcher . | . . . . . . . . . . . . . . . Special . | . . . . . . . . . . . . . . . Kinetic 345 | 20 22 26 . 18 20 22 78 20 76 15 . . 1 27 Thermal 11 | . . . . . . . . . . 5 . 6 . . Explosive . | . . . . . . . . . . . . . . . Electromagnetic . | . . . . . . . . . . . . . . . Robot Hit Streak 18 | 7 7 5 . 17 18 7 15 6 8 8 . 11 1 4 Robot Miss Streak 7 | 1 1 2 . . 1 1 2 5 3 7 . 1 . 2 Penetration Max 1 | . . . . . . . 1 1 1 . . . . . Secondary Targets 5 | . . . . . . 1 3 . 1 . . . . . Max Gunslinging Chain 1 | . . . . . . 1 1 . 1 . . . . . Shots Hit Robots 240 | 15 15 18 . 15 14 16 56 9 40 16 1 6 1 18 Core Hits 104 | 3 9 5 . 7 2 7 26 5 24 9 . 2 . 5 Critical Kills 8 | . . . . . . 2 2 2 2 . . . . . Critical Parts Destroyed 7 | . . . . . . . . 2 3 . . . . 2 Critical Strikes 17 | . . . . . . 2 2 4 7 . . . . 2 Destroy 15 | . . . . . . 2 2 4 5 . . . . 2 Blast 2 | . . . . . . . . . 2 . . . . . Melee Attacks 5 | . . . . . . . . . . . 1 4 . . Impact . | . . . . . . . . . . . . . . . Slashing 5 | . . . . . . . . . . . 1 4 . . Piercing . | . . . . . . . . . . . . . . . Sneak Attacks 1 | . . . . . . . . . . . 1 . . . Combat Hostiles . | . . . . . . . . . . . . . . . Follow-up Attacks . | . . . . . . . . . . . . . . . Damage Inflicted 4774 | 153 150 197 . 160 297 299 1208 226 1129 305 99 179 43 329 Guns 3316 | 153 150 197 . 160 297 299 1208 . 209 305 . 77 . 261 Cannons 1228 | . . . . . . . . 224 920 . . . 29 55 Explosions . | . . . . . . . . . . . . . . . Melee 201 | . . . . . . . . . . . 99 102 . . Ramming 29 | . . . . . . . . 2 . . . . 14 13 Kinetic 4390 | 153 150 197 . 160 297 299 1208 224 1129 228 . . 29 316 Thermal 154 | . . . . . . . . . . 77 . 77 . . Explosive . | . . . . . . . . . . . . . . . Electromagnetic . | . . . . . . . . . . . . . . . Impact . | . . . . . . . . . . . . . . . Slashing 201 | . . . . . . . . . . . 99 102 . . Piercing . | . . . . . . . . . . . . . . . Highest Corruption 7 | . . . . . . . . . 5 5 . 6 5 7 Average Corruption 2 | . . . . . . . . . 4 5 . 4 1 4 Corruption Purged . | . . . . . . . . . . . . . . . Corruption Blocked . | . . . . . . . . . . . . . . . Effects 14 | . . . . . . . . . 4 3 . 1 3 3 Message Errors 5 | . . . . . . . . . 1 1 . . 1 2 Matter Fused 6 | . . . . . . . . . 2 1 . 1 1 1 Energy Discharges 1 | . . . . . . . . . . 1 . . . . Data Loss (minor) 1 | . . . . . . . . . . . . . 1 . Misfires 1 | . . . . . . . . . 1 . . . . . Overload Shots . | . . . . . . . . . . . . . . . Overflow Damage 101 | . . . . . . . 23 . 1 . 77 . . . Projectiles 1 | . . . . . . . . . 1 . . . . . Explosions 23 | . . . . . . . 23 . . . . . . . Melee 77 | . . . . . . . . . . . 77 . . . Knockbacks 18 | . . . . . . . . 3 12 . . . 1 2 Impact . | . . . . . . . . . . . . . . . Kinetic 15 | . . . . . . . . 2 10 . . . 1 2 Secondary 3 | . . . . . . . . 1 2 . . . . . Self-Inflicted Damage 149 | . . . . . . . 138 . . . . . 7 4 Shots 1 | . . . . . . . 1 . . . . . . . Rammed 11 | . . . . . . . . . . . . . 2 9 Targets Rammed 12 | . . . . . . . . 1 . . . . 2 9 Kicked 1 | . . . . . . . . 1 . . . . . . Crushed . | . . . . . . . . . . . . . . . Highest Temperature 363 | . 9 21 . 14 . . . 265 363 19 . . 6 . Average Temperature 82 | . 2 8 . 6 . . . 96 128 8 . . 5 . Received Heat Transfer 1639 | . 66 87 . 36 27 42 169 90 666 270 . 9 156 21 Effects 1 | . . . . . . . . . 1 . . . . . Short Circuit 1 | . . . . . . . . . 1 . . . . . Siege Activations . | . . . . . . . . . . . . . . . Robots Corrupted . | . . . . . . . . . . . . . . . Combat Hostiles . | . . . . . . . . . . . . . . . Parts Fried . | . . . . . . . . . . . . . . . Impact Corruptions . | . . . . . . . . . . . . . . . Robots Melted . | . . . . . . . . . . . . . . . Combat Hostiles . | . . . . . . . . . . . . . . . Parts Melted . | . . . . . . . . . . . . . . . Heat Transferred 296 | . . . . . . . . . . 148 . 148 . . Parts Sabotaged . | . . . . . . . . . . . . . . . Parts Stolen . | . . . . . . . . . . . . . . . Parts Stripped . | . . . . . . . . . . . . . . . Power Chain Reactions . | . . . . . . . . . . . . . . . Missiles Intercepted . | . . . . . . . . . . . . . . . Alert | -11 -10 -10 -10 -9 -8 -8 -8 -7 -7 -7 -6 -6 -5 -4 ------- Run | Jun Mat Min Exi Min Mat Sto Gar Fac Low Low Fac DSF Fac Fac Peak Influence 692 | 5 143 120 . 55 44 153 692 363 . . 15 25 30 272 Initial 363 | . 3 55 . . 21 18 102 363 . . . 10 7 14 Average 195 | 2 95 95 . 48 21 84 444 267 . . 2 13 7 105 Maximum Alert Level 2 | . . . . . . . 2 1 . . . . . 1 Low Security (%) 62 | 100 100 100 . 100 100 100 20 22 . . 100 100 100 77 Level 1 20 | . . . . . . . 19 77 . . . . . 22 Level 2 16 | . . . . . . . 59 . . . . . . . Level 3 . | . . . . . . . . . . . . . . . Level 4 . | . . . . . . . . . . . . . . . Level 5 . | . . . . . . . . . . . . . . . High Security . | . . . . . . . . . . . . . . . Max Security . | . . . . . . . . . . . . . . . Squads Dispatched 4 | . . . . . . 2 . . . . . 1 1 . Investigation . | . . . . . . . . . . . . . . . Extermination 1 | . . . . . . . . . . . . . 1 . Reinforcement 1 | . . . . . . . . . . . . 1 . . Assault . | . . . . . . . . . . . . . . . Garrison 2 | . . . . . . 2 . . . . . . . . Intercept . | . . . . . . . . . . . . . . . Searches Triggered . | . . . . . . . . . . . . . . . Construction Impeded . | . . . . . . . . . . . . . . . Haulers Reinforced . | . . . . . . . . . . . . . . . Active Scanning Responses . | . . . . . . . . . . . . . . . Cargo Convoy Interrupts . | . . . . . . . . . . . . . . . Stealth | -11 -10 -10 -10 -9 -8 -8 -8 -7 -7 -7 -6 -6 -5 -4 --------- Run | Jun Mat Min Exi Min Mat Sto Gar Fac Low Low Fac DSF Fac Fac Distress Signals 2 | . . . . . . . . . . . . . 1 1 Communications Jammed . | . . . . . . . . . . . . . . . Distress Signals . | . . . . . . . . . . . . . . . Times Spotted 112 | . 6 3 . 2 2 6 17 6 22 3 . 7 10 28 Peak Tracking Total 8 | . 5 2 . 1 2 3 4 3 7 3 . 6 8 7 Tactical Retreats 18 | . . 1 . . . . 1 . 2 . . 1 2 11 Traps | -11 -10 -10 -10 -9 -8 -8 -8 -7 -7 -7 -6 -6 -5 -4 ------- Run | Jun Mat Min Exi Min Mat Sto Gar Fac Low Low Fac DSF Fac Fac Traps Triggered 11 | . . . . . . . 2 4 . . . . 1 4 Indirectly . | . . . . . . . . . . . . . . . Trap Hack Attempts . | . . . . . . . . . . . . . . . Triggered . | . . . . . . . . . . . . . . . Disarmed . | . . . . . . . . . . . . . . . Reprogrammed . | . . . . . . . . . . . . . . . Reused . | . . . . . . . . . . . . . . . Traps Extracted . | . . . . . . . . . . . . . . . Installed . | . . . . . . . . . . . . . . . Triggered . | . . . . . . . . . . . . . . . Machines | -11 -10 -10 -10 -9 -8 -8 -8 -7 -7 -7 -6 -6 -5 -4 ---------- Run | Jun Mat Min Exi Min Mat Sto Gar Fac Low Low Fac DSF Fac Fac Machines Disabled 4 | . . . . . . 1 2 1 . . . . . . Max in Single Turn 1 | . . . . . . 1 1 1 . . . . . . Garrison Access 1 | . . . . . . . . 1 . . . . . . Phase Generator 1 | . . . . . . . 1 . . . . . . . Machines Repaired . | . . . . . . . . . . . . . . . Machines Sabotaged . | . . . . . . . . . . . . . . . Overloaded Fab Kills . | . . . . . . . . . . . . . . . Hacking | -11 -10 -10 -10 -9 -8 -8 -8 -7 -7 -7 -6 -6 -5 -4 --------- Run | Jun Mat Min Exi Min Mat Sto Gar Fac Low Low Fac DSF Fac Fac Machines Accessed 25 | . 1 . 4 . 3 1 3 4 . . 3 . 4 2 Terminals 13 | . . . . . 3 . 3 2 . . 2 . 1 2 Fabricators . | . . . . . . . . . . . . . . . Repair Stations 1 | . . . . . . . . . . . . . 1 . Recycling Units 5 | . 1 . . . . . . 1 . . 1 . 2 . Scanalyzers . | . . . . . . . . . . . . . . . Garrison Access 2 | . . . . . . 1 . 1 . . . . . . Total Hacks 59 | . 2 . 23 . 7 3 4 7 . . 5 . 6 2 Successful 41 | . . . 23 . 4 1 3 2 . . 3 . 3 2 Failed 18 | . 2 . . . 3 2 1 5 . . 2 . 3 . Catastrophic 4 | . . . . . . . . 2 . . 1 . 1 . Database Lockouts . | . . . . . . . . . . . . . . . Manual 1 | . . . 1 . . . . . . . . . . . Terminals 23 | . . . . . 7 . 4 5 . . 3 . 2 2 Fabricators . | . . . . . . . . . . . . . . . Repair Stations 1 | . . . . . . . . . . . . . 1 . Recycling Units 8 | . 2 . . . . . . 1 . . 2 . 3 . Scanalyzers . | . . . . . . . . . . . . . . . Garrison Access 4 | . . . . . . 3 . 1 . . . . . . Terminal Hacks 36 | . . . 23 . 4 . 3 1 . . 2 . 1 2 Record 24 | . . . 23 . 1 . . . . . . . . . Open Door 1 | . . . . . . . 1 . . . . . . . Open DSF 3 | . . . . . . . . . . . 1 . 1 1 Branch Access Points 2 | . . . . . 1 . . 1 . . . . . . Emergency Access Points 2 | . . . . . 1 . 1 . . . . . . . Recycling Unit Index 1 | . . . . . . . . . . . . . . 1 Zone Layout 2 | . . . . . 1 . . . . . 1 . . . Patrol Navigation 1 | . . . . . . . 1 . . . . . . . Fabricator Hacks . | . . . . . . . . . . . . . . . Repair Station Hacks 1 | . . . . . . . . . . . . . 1 . Refit 1 | . . . . . . . . . . . . . 1 . Recycling Unit Hacks 2 | . . . . . . . . . . . 1 . 1 . Retrieve Matter 1 | . . . . . . . . . . . . . 1 . Retrieve Components 1 | . . . . . . . . . . . 1 . . . Scanalyzer . | . . . . . . . . . . . . . . . Garrison Access Hacks 2 | . . . . . . 1 . 1 . . . . . . Unlock Access 1 | . . . . . . 1 . . . . . . . . Seal Access 1 | . . . . . . . . 1 . . . . . . Unauthorized Hacks . | . . . . . . . . . . . . . . . Terminals . | . . . . . . . . . . . . . . . Fabricators . | . . . . . . . . . . . . . . . Repair Stations . | . . . . . . . . . . . . . . . Recycling Units . | . . . . . . . . . . . . . . . Scanalyzers . | . . . . . . . . . . . . . . . Garrison Access . | . . . . . . . . . . . . . . . Data Cores Recovered . | . . . . . . . . . . . . . . . Used . | . . . . . . . . . . . . . . . Hacking Detections 15 | . 1 . . . 3 1 3 3 . . 2 . 2 . Full Trace Events . | . . . . . . . . . . . . . . . Feedback Events . | . . . . . . . . . . . . . . . Feedback Blocked . | . . . . . . . . . . . . . . . Robot Schematics Acquired . | . . . . . . . . . . . . . . . Robots Built . | . . . . . . . . . . . . . . . Authchips . | . . . . . . . . . . . . . . . Time . | . . . . . . . . . . . . . . . Total Robot Build Rating . | . . . . . . . . . . . . . . . Part Schematics Acquired . | . . . . . . . . . . . . . . . Parts Built . | . . . . . . . . . . . . . . . Authchips . | . . . . . . . . . . . . . . . Time . | . . . . . . . . . . . . . . . Total Part Build Rating . | . . . . . . . . . . . . . . . Parts Repaired . | . . . . . . . . . . . . . . . Time . | . . . . . . . . . . . . . . . Parts Recycled . | . . . . . . . . . . . . . . . Recycled Matter . | . . . . . . . . . . . . . . . Retrieved Matter . | . . . . . . . . . . . . . . . Retrieved Components . | . . . . . . . . . . . . . . . Parts Scanalyzed . | . . . . . . . . . . . . . . . Part Schematics Acquired . | . . . . . . . . . . . . . . . Parts Damaged . | . . . . . . . . . . . . . . . Bothacking | -11 -10 -10 -10 -9 -8 -8 -8 -7 -7 -7 -6 -6 -5 -4 ------------ Run | Jun Mat Min Exi Min Mat Sto Gar Fac Low Low Fac DSF Fac Fac Used RIF Installer 1 | . . . . . . . 1 . . . . . . . Robots Hacked . | . . . . . . . . . . . . . . . Non-combat . | . . . . . . . . . . . . . . . Combat . | . . . . . . . . . . . . . . . Robot Hacks Applied . | . . . . . . . . . . . . . . . Relay Couplers Released . | . . . . . . . . . . . . . . . Fabnet Peak Effective % . | . . . . . . . . . . . . . . . Robots Rewired 4 | . . . . . . . 3 . . . . . . 1 Allies Hacked . | . . . . . . . . . . . . . . . Hacks Repelled . | . . . . . . . . . . . . . . . Allies | -11 -10 -10 -10 -9 -8 -8 -8 -7 -7 -7 -6 -6 -5 -4 -------- Run | Jun Mat Min Exi Min Mat Sto Gar Fac Low Low Fac DSF Fac Fac Total Allies 4 | . . . . . . . 3 . . . . . . 1 Largest Group 3 | . . . . . . . 3 1 . . . . . 1 Highest-Rated Group 84 | . . . . . . . 84 17 . . . . . 12 Highest-Rated Ally 39 | . . . . . . . 39 17 . . . . . 12 Total Orders 7 | . . . . . . . 3 . . . 3 . . 1 GUARD 4 | . . . . . . . 3 . . . . . . 1 EXPLORE 1 | . . . . . . . . . . . 1 . . . RETURN 2 | . . . . . . . . . . . 2 . . . Ally Attacks 22 | . . . . . . . 17 . . . . . . 5 Total Damage 395 | . . . . . . . 367 . . . . . . 28 Kills 3 | . . . . . . . 3 . . . . . . . Allies Corrupted . | . . . . . . . . . . . . . . . Allies Melted . | . . . . . . . . . . . . . . . Intel | -11 -10 -10 -10 -9 -8 -8 -8 -7 -7 -7 -6 -6 -5 -4 ------- Run | Jun Mat Min Exi Min Mat Sto Gar Fac Low Low Fac DSF Fac Fac Robot Analysis Total . | . . . . . . . . . . . . . . . Derelict Logs Recovered 3 | . . 2 . . . . . . 1 . . . . . Drone Launches 2 | . . . . . . . . . . . 2 . . . Drone Recoveries 2 | . . . . . . . . . . . 2 . . . Exploration | -11 -10 -10 -10 -9 -8 -8 -8 -7 -7 -7 -6 -6 -5 -4 ------------- Run | Jun Mat Min Exi Min Mat Sto Gar Fac Low Low Fac DSF Fac Fac Turns Passed 7197 | 155 225 204 869 79 582 159 1518 871 906 81 320 111 590 527 Spaces Moved 5263 | 92 150 135 722 42 325 67 952 609 420 60 200 115 573 801 Core 693 | 6 . . . . . . . . 1 40 148 89 112 297 Treads . | . . . . . . . . . . . . . . . Legs 3526 | 86 150 135 722 42 325 67 952 609 418 20 . . . . Wheels 148 | . . . . . . . . . 1 . 52 26 . 69 Hover 518 | . . . . . . . . . . . . . 461 57 Flight 378 | . . . . . . . . . . . . . . 378 Fastest Speed 34 | 50 120 120 120 120 120 122 122 120 122 50 50 50 50 34 Average Speed 105 | 115 120 120 120 120 121 122 122 123 152 76 121 63 72 49 Slowest Speed 250 | 120 120 120 120 120 122 122 123 125 250 130 200 110 134 120 Overloaded Moves . | . . . . . . . . . . . . . . . Propulsion Burnouts . | . . . . . . . . . . . . . . . Robots Hopped 3 | . . . . . . . . . . . . . . 3 Cave-ins Triggered . | . . . . . . . . . . . . . . . Exploration Rate (%) 31 | 5 23 34 94 7 17 10 68 15 59 8 7 87 11 23 Regions Visited 14 Branch Regions 6 Pre-discovered Areas 3 | . . 1 1 . . . . . 1 . . . . . Known Exits Taken 7 | . . . . . 1 1 . 1 1 1 1 . 1 . Unknown Exits Taken 5 | 1 1 1 1 1 . . . . . . . . . . Scrap Searched 1 | . . . . . . . . . 1 . . . . . Spaces Dug . | . . . . . . . . . . . . . . . Terrain Destroyed 107 | . . . . . . 1 73 6 26 1 . . . . Melee . | . . . . . . . . . . . . . . . Projectile 36 | . . . . . . 1 2 6 26 1 . . . . AOE 71 | . . . . . . . 71 . . . . . . . Terrain Rammed . | . . . . . . . . . . . . . . . Walls Destroyed . | . . . . . . . . . . . . . . . Machines Disabled . | . . . . . . . . . . . . . . . Actions | -11 -10 -10 -10 -9 -8 -8 -8 -7 -7 -7 -6 -6 -5 -4 --------- Run | Jun Mat Min Exi Min Mat Sto Gar Fac Low Low Fac DSF Fac Fac Total 6567 | 123 176 154 724 56 495 122 1236 714 626 75 275 139 749 903 Wait 848 | . 7 5 1 . 129 42 191 60 150 . 57 12 153 41 Move 5239 | 91 149 134 721 41 324 67 946 608 419 59 199 114 572 795 Hop 3 | . . . . . . . . . . . . . . 3 Pick Up 65 | 12 5 . . 1 9 1 3 8 5 . 8 . 8 5 Fast Attach 26 | 1 . . 1 . 4 . 1 5 1 . 3 . . 10 Attach 42 | 6 1 . . . 5 . 1 4 10 1 4 1 8 1 Detach . | . . . . . . . . . . . . . . . Swap 24 | . 1 1 . 2 3 . 9 7 1 . . . . . Drop 62 | 1 2 1 1 3 11 1 11 11 2 3 3 2 5 5 Fire 199 | 12 11 13 . 9 10 11 39 10 38 12 . 6 1 27 Melee 5 | . . . . . . . . . . . 1 4 . . Ram 11 | . . . . . . . . . . . . . 2 9 Kick 1 | . . . . . . . . 1 . . . . . . Crush . | . . . . . . . . . . . . . . . Escape Stasis 8 | . . . . . . . 2 . . . . . . 6 Rewire 34 | . . . . . . . 33 . . . . . . 1 Trap . | . . . . . . . . . . . . . . . Miscellaneous . | . . . . . . . . . . . . . . . Route ------- -11/Junkyard -10/Materials -10/Mines -10/Exiles (discovered 2 exits: [*Min x2]) -9/Mines -8/Materials (discovered 2 exits: *Sto x2) -8/Storage -8/Garrison (discovered 2 exits: *Fac x2) -7/Factory (discovered 2 exits: *Low x2) -7/Lower Caves -7/Lower Caves -6/Factory (discovered 2 exits: *Low / DSF) -6/DSF -5/Factory -4/Factory History --------- Turn | Location | Event 2 | -11/Junkyard | Discovered new exit (range 16) 156 | -11/Junkyard | Entered Materials 310 | -10/Materials | Build established: Mutant 358 | -10/Materials | Discovered new exit (range 15) 381 | -10/Materials | Entered Mines 577 | -10/Mines | Learned location of Recycling (-8) 580 | -10/Mines | Deemed a non-threat by the Exiles lab entrance 580 | -10/Mines | Discovered new exit (range 5) 585 | -10/Mines | Entered Exiles 613 | -10/Exiles | Discovered new exit (range 15) 638 | -10/Exiles | Met 8R-AWN 661 | -10/Exiles | Met EX-HEX 728 | -10/Exiles | Met EX-DEC 763 | -10/Exiles | Learned location of Zion (-7) 829 | -10/Exiles | Discovered new exit (range 12) 925 | -10/Exiles | Visited The Gauntlet 1183 | -10/Exiles | Met EX-BIN 1298 | -10/Exiles | Aligned with FarCom system 1299 | -10/Exiles | Given EX-Vault access code 1328 | -10/Exiles | Opened EX-Vault 1337 | -10/Exiles | Found Prototype Device 1337 | -10/Exiles | Identified Skeleton Box 1365 | -10/Exiles | Warned to stay clear of 0b10 Research branches 1454 | -10/Exiles | Left Exiles lab with Skeleton Box 1454 | -10/Exiles | Entered Mines 1520 | -9/Mines | Discovered new exit (range 11) 1533 | -9/Mines | Entered Materials 1533 | -8/Materials | Evolved 4 slots: Propulsion x2, Utility x2 1534 | -8/Materials | Identified exit to Storage 1830 | -8/Materials | Build established: Scavenger-Mutant 2115 | -8/Materials | Entered Storage 2174 | -8/Storage | Garrison activated, responded to threat 2274 | -8/Storage | Identified exit to Garrison 2274 | -8/Storage | Entered Garrison 2493 | -8/Garrison | Phase Generator disabled 2606 | -8/Garrison | Triggered checkpoint 2758 | -8/Garrison | Triggered checkpoint 3046 | -8/Garrison | Triggered checkpoint 3099 | -8/Garrison | Discovered new exit (range 8) 3112 | -8/Garrison | Attempted to access garrison exit controls, blocked by remote lockdown 3156 | -8/Garrison | Triggered checkpoint 3433 | -8/Garrison | Installed Relay Interface Framework 3664 | -8/Garrison | Triggered checkpoint 3767 | -8/Garrison | Discovered new exit (range 10) 3792 | -8/Garrison | Entered Factory 3792 | -7/Factory | Accompanied by 1 ally 3792 | -7/Factory | Evolved 2 slots: Utility x2 4537 | -7/Factory | Build established: Mutant 4586 | -7/Factory | Identified exit to Lower Caves 4663 | -7/Factory | Entered Lower Caves 4664 | -7/Lower Caves | Encountered a Warlord checkpoint 4883 | -7/Lower Caves | Spotted B-75 Beast 5073 | -7/Lower Caves | Build established: Scavenger-Mutant 5424 | -7/Lower Caves | Build established: Mutant 5437 | -7/Lower Caves | Lost 8 parts (2p2n2u2w) 5482 | -7/Lower Caves | Lost 3 parts (2u1w) 5561 | -7/Lower Caves | Discovered new exit (range 7) 5564 | -7/Lower Caves | Attracted the attention of an 0b10 outpost 5568 | -7/Lower Caves | Identified exit to Lower Caves 5569 | -7/Lower Caves | Entered another Lower Caves area 5648 | -7/Lower Caves | Discovered new exit (range 4) 5649 | -7/Lower Caves | Identified exit to Factory 5650 | -7/Lower Caves | Entered Factory 5650 | -6/Factory | Evolved 2 slots: Propulsion x1, Weapon x1 5656 | -6/Factory | Lost 3 parts (1n2w) 5729 | -6/Factory | Discovered new exit (range 43) 5932 | -6/Factory | Identified exit to Lower Caves 5968 | -6/Factory | Identified exit to DSF 5970 | -6/Factory | Entered DSF 5992 | -6/DSF | Additional patrols routed to DSF 6074 | -6/DSF | Discovered new exit (range 15) 6078 | -6/DSF | Lost 5 parts (1n3u1w) 6081 | -6/DSF | Identified exit to Factory 6081 | -6/DSF | Entered Factory 6081 | -5/Factory | Evolved 2 slots: Propulsion x1, Utility x1 6651 | -5/Factory | Build established: Hacker-Mutant 6666 | -5/Factory | Discovered new exit (range 6) 6669 | -5/Factory | Identified exit to Factory 6671 | -5/Factory | Entered another Factory area 6671 | -4/Factory | Evolved 2 slots: Utility x2 6687 | -4/Factory | Lost 6 parts (1p2n3u) 6868 | -4/Factory | Lost 4 parts (3n1u) 6940 | -4/Factory | Core integrity fell below 50% 7049 | -4/Factory | Lost 3 parts (2n1u) 7128 | -4/Factory | Build established: Mutant 7134 | -4/Factory | Core integrity fell below 20% 7198 | -4/Factory | Destroyed by P-70 Sage with Tesla Rifle Last Messages --------------- 07088_ Dropped Hyp. Mass Driver. 07103_ Acquired 23 matter. 07108_ Pressure Siphon disabled. 07125_ Acquired 4 matter. 07139_ Autogun destroyed. 07140_ Acquired 3 matter. 07141_ Acquired 8 matter. 07141_ Acquired 5 matter. 07146_ D7J:MDXKLM95V#VJIPJXM=4Y>D3COGZ UUAE 07151_ ALERT: Cargo convoy en route, clear transfer corridor. 07153_ Acquired Hyp. Mass Driver. 07162_ System corrupted: Matter fused (-8). 07181_ Slammed into P-70 Sage. 07183_ Destabilizing: System interference. 07183_ Hyp. Mass Driver temporarily disabled. 07184_ Slammed into P-70 Sage. 07186_ Nuclear Pulse Array destroyed. 07195_ Lgt. Nuclear Core destroyed. 07196_ HV Slug penetrates Wall. 07197_ AS<20I5|,39VYDT<2OONO8